[Event "*** Titled Tuesday Blitz"]
[Site "Chess.com"]
[Date "2021.04.20"]
[Round "4"]
[White "gisela_roque"]
[Black "chesshermar"]
[Result "0-1"]
[WhiteElo "1795"]
[BlackElo "2198"]
[TimeControl "180+1"]
[EndTime "10:38:29 PDT"]
[Termination "chesshermar won on time"]

1. c4 {[%clk 0:03:00.9]} 1... g6 {[%clk 0:02:56.8]} 2. Nf3 {[%clk 0:02:56.1]}
2... Bg7 {[%clk 0:02:56.5]} 3. g3 {[%clk 0:02:56.4]} 3... e5 {[%clk 0:02:56.5]}
4. Nc3 {[%clk 0:02:54.8]} 4... d6 {[%clk 0:02:56.6]} 5. Bg2 {[%clk 0:02:55]}
5... f5 {[%clk 0:02:56.6]} 6. d3 {[%clk 0:02:54.7]} 6... Nf6 {[%clk 0:02:56.5]}
7. O-O {[%clk 0:02:54.3]} 7... O-O {[%clk 0:02:57]} 8. Rb1 {[%clk 0:02:53.1]}
8... c6 {[%clk 0:02:50.9]} 9. b4 {[%clk 0:02:49.1]} 9... Kh8 {[%clk 0:02:50.4]}
10. Ba3 {[%clk 0:02:42.4]} 10... Be6 {[%clk 0:02:34.9]} 11. Qc2 {[%clk
0:02:23.6]} 11... Bg8 {[%clk 0:02:25.5]} 12. c5 {[%clk 0:02:19.4]} 12... dxc5
{[%clk 0:02:18.9]} 13. Nxe5 {[%clk 0:02:16.9]} 13... cxb4 {[%clk 0:02:17.5]} 14.
Bxb4 {[%clk 0:02:14.5]} 14... Re8 {[%clk 0:02:17.5]} 15. Nc4 {[%clk 0:02:07.1]}
15... Na6 {[%clk 0:02:12.7]} 16. Ba3 {[%clk 0:01:46.2]} 16... Bxc4 {[%clk
0:01:42.5]} 17. dxc4 {[%clk 0:01:47.1]} 17... Qa5 {[%clk 0:01:35.1]} 18. Bc1
{[%clk 0:01:38.8]} 18... Nc5 {[%clk 0:01:21.7]} 19. Be3 {[%clk 0:01:30]} 19...
Ng4 {[%clk 0:01:12.4]} 20. Bxc5 {[%clk 0:01:25.8]} 20... Qxc5 {[%clk 0:01:13.3]}
21. Rxb7 {[%clk 0:01:11.7]} 21... Qxc4 {[%clk 0:01:13.4]} 22. Rb3 {[%clk
0:01:01.7]} 22... Rab8 {[%clk 0:00:57.3]} 23. h3 {[%clk 0:00:33.8]} 23... Nf6
{[%clk 0:00:25.4]} 24. Qb1 {[%clk 0:00:28.2]} 24... Rxb3 {[%clk 0:00:21.3]} 25.
Qxb3 {[%clk 0:00:28.3]} 25... Qxb3 {[%clk 0:00:18.1]} 26. axb3 {[%clk
0:00:29.2]} 26... Nh5 {[%clk 0:00:07]} 27. e3 {[%clk 0:00:28.6]} 27... Bxc3
{[%clk 0:00:06.2]} 28. Bxc6 {[%clk 0:00:27.6]} 28... Rc8 {[%clk 0:00:05.7]} 29.
Bf3 {[%clk 0:00:26]} 29... Nf6 {[%clk 0:00:06.1]} 30. Rd1 {[%clk 0:00:24.1]}
30... Kg7 {[%clk 0:00:06]} 31. g4 {[%clk 0:00:22.4]} 31... fxg4 {[%clk
0:00:06.1]} 32. hxg4 {[%clk 0:00:22.2]} 32... Rc7 {[%clk 0:00:06.6]} 33. g5
{[%clk 0:00:21.4]} 33... Ne8 {[%clk 0:00:06.2]} 34. Rd8 {[%clk 0:00:20.3]} 34...
Kf7 {[%clk 0:00:04.8]} 35. Bd5+ {[%clk 0:00:20.3]} 35... Ke7 {[%clk 0:00:04.8]}
36. Rb8 {[%clk 0:00:18.5]} 36... Be5 {[%clk 0:00:04.9]} 37. f4 {[%clk
0:00:15.6]} 37... Bd6 {[%clk 0:00:04]} 38. Rb5 {[%clk 0:00:13.1]} 38... Bc5
{[%clk 0:00:03.4]} 39. Kf2 {[%clk 0:00:12.3]} 39... Nd6 {[%clk 0:00:04.3]} 40.
Rb8 {[%clk 0:00:10.8]} 40... Nf5 {[%clk 0:00:04.7]} 41. Bg8 {[%clk 0:00:08.2]}
41... Bxe3+ {[%clk 0:00:04.8]} 42. Kf3 {[%clk 0:00:08.3]} 42... Rc3 {[%clk
0:00:05]} 43. Ke4 {[%clk 0:00:08.1]} 43... Nd6+ {[%clk 0:00:03.4]} 44. Kd5
{[%clk 0:00:07.7]} 44... Bb6 {[%clk 0:00:03.4]} 45. Bxh7 {[%clk 0:00:05.8]}
45... Rd3+ {[%clk 0:00:04]} 46. Kc6 {[%clk 0:00:03]} 46... Kf7 {[%clk
0:00:04.6]} 0-1

[Event "*** Titled Tuesday Blitz"]
[Site "Chess.com"]
[Date "2021.04.20"]
[Round "4"]
[White "aaaao"]
[Black "Oligan22"]
[Result "0-1"]
[WhiteElo "2629"]
[BlackElo "2501"]
[TimeControl "180+1"]
[EndTime "10:38:31 PDT"]
[Termination "Oligan22 won by resignation"]

1. e4 {[%clk 0:03:00.9]} 1... c6 {[%clk 0:02:59.3]} 2. Nc3 {[%clk 0:02:59.2]}
2... d5 {[%clk 0:03:00.2]} 3. Nf3 {[%clk 0:02:59.5]} 3... dxe4 {[%clk 0:03:00]}
4. Nxe4 {[%clk 0:02:59.6]} 4... Nf6 {[%clk 0:03:00.9]} 5. Nxf6+ {[%clk
0:02:58.9]} 5... exf6 {[%clk 0:03:01.8]} 6. d4 {[%clk 0:02:58.7]} 6... Bd6
{[%clk 0:03:02]} 7. Bd3 {[%clk 0:02:56.8]} 7... O-O {[%clk 0:03:02.5]} 8. Be3
{[%clk 0:02:56.6]} 8... Bg4 {[%clk 0:02:56.7]} 9. Qd2 {[%clk 0:02:55.8]} 9...
Nd7 {[%clk 0:02:53.8]} 10. O-O-O {[%clk 0:02:55.7]} 10... Re8 {[%clk 0:02:42.6]}
11. h3 {[%clk 0:02:55.6]} 11... Bh5 {[%clk 0:02:28.3]} 12. g4 {[%clk 0:02:55.4]}
12... Bg6 {[%clk 0:02:28.7]} 13. Bxg6 {[%clk 0:02:47.2]} 13... hxg6 {[%clk
0:02:28.9]} 14. h4 {[%clk 0:02:46.2]} 14... Nb6 {[%clk 0:02:27.5]} 15. Qd3
{[%clk 0:02:34.4]} 15... Bf8 {[%clk 0:02:22.8]} 16. g5 {[%clk 0:02:29.5]} 16...
Qd5 {[%clk 0:02:11]} 17. Nd2 {[%clk 0:02:29.4]} 17... Qxa2 {[%clk 0:02:07.5]}
18. gxf6 {[%clk 0:02:29.3]} 18... gxf6 {[%clk 0:01:27.4]} 19. h5 {[%clk
0:02:28]} 19... g5 {[%clk 0:01:27.6]} 20. Rdg1 {[%clk 0:02:17.6]} 20... Na4
{[%clk 0:01:19.8]} 21. Qb3 {[%clk 0:01:52.9]} 21... Qxb3 {[%clk 0:01:18]} 22.
Nxb3 {[%clk 0:01:52.8]} 22... Kh7 {[%clk 0:01:12]} 23. Rh3 {[%clk 0:01:51.3]}
23... Rad8 {[%clk 0:01:07.9]} 24. Rf3 {[%clk 0:01:50.8]} 24... Re6 {[%clk
0:01:05]} 25. Na5 {[%clk 0:01:48.4]} 25... Rd7 {[%clk 0:01:03.3]} 26. c3 {[%clk
0:01:31.8]} 26... Nb6 {[%clk 0:01:03.1]} 27. Kc2 {[%clk 0:01:28.6]} 27... Nd5
{[%clk 0:01:02.5]} 28. Nc4 {[%clk 0:01:24.9]} 28... Bh6 {[%clk 0:01:01.3]} 29.
Bd2 {[%clk 0:01:17.1]} 29... Rde7 {[%clk 0:00:56.6]} 30. Rf5 {[%clk 0:01:00.7]}
30... Re2 {[%clk 0:00:44]} 31. Kd1 {[%clk 0:00:59.9]} 31... R2e4 {[%clk
0:00:41.1]} 32. Nd6 {[%clk 0:00:42]} 32... Rh4 {[%clk 0:00:37.5]} 33. c4 {[%clk
0:00:42.1]} 33... Rxd4 {[%clk 0:00:22.3]} 34. cxd5 {[%clk 0:00:39.7]} 34... g4
{[%clk 0:00:22.8]} 35. Nc4 {[%clk 0:00:27.9]} 35... Rxc4 {[%clk 0:00:16.8]} 36.
d6 {[%clk 0:00:20.3]} 36... Re6 {[%clk 0:00:15.5]} 37. Bxh6 {[%clk 0:00:06.8]}
37... Kxh6 {[%clk 0:00:16.4]} 38. d7 {[%clk 0:00:05.6]} 38... Rd4+ {[%clk
0:00:14.6]} 39. Kc2 {[%clk 0:00:05.8]} 39... Red6 {[%clk 0:00:10.4]} 40. Kc3
{[%clk 0:00:03.7]} 40... Rxd7 {[%clk 0:00:09.2]} 41. Rxf6+ {[%clk 0:00:04.1]}
41... Kxh5 {[%clk 0:00:09.8]} 42. Rh1+ {[%clk 0:00:02.3]} 42... Kg5 {[%clk
0:00:09.9]} 43. Rfh6 {[%clk 0:00:02.4]} 43... Rd3+ {[%clk 0:00:09.1]} 44. Kc2
{[%clk 0:00:02.4]} 44... Rd2+ {[%clk 0:00:09.2]} 45. Kc3 {[%clk 0:00:02.9]}
45... Rxf2 {[%clk 0:00:08.9]} 46. R1h5+ {[%clk 0:00:02.7]} 46... Kf4 {[%clk
0:00:09.2]} 47. Rf6+ {[%clk 0:00:01.4]} 47... Kg3 {[%clk 0:00:08.6]} 48. Rxf2
{[%clk 0:00:01.8]} 48... Kxf2 {[%clk 0:00:09.5]} 49. Rf5+ {[%clk 0:00:02.5]}
49... Kg3 {[%clk 0:00:07.1]} 0-1

[Event "*** Titled Tuesday Blitz"]
[Site "Chess.com"]
[Date "2021.04.20"]
[Round "4"]
[White "vinniethepooh"]
[Black "RzayevB"]
[Result "0-1"]
[WhiteElo "2735"]
[BlackElo "2570"]
[TimeControl "180+1"]
[EndTime "10:38:32 PDT"]
[Termination "RzayevB won by resignation"]

1. d4 {[%clk 0:03:00.9]} 1... c5 {[%clk 0:02:58.6]} 2. d5 {[%clk 0:02:59.2]}
2... e5 {[%clk 0:02:57.8]} 3. c4 {[%clk 0:02:57.7]} 3... d6 {[%clk 0:02:58.2]}
4. Nc3 {[%clk 0:02:58.2]} 4... Nf6 {[%clk 0:02:58.9]} 5. e4 {[%clk 0:02:55.5]}
5... Be7 {[%clk 0:02:59.8]} 6. Bd3 {[%clk 0:02:55.8]} 6... O-O {[%clk
0:03:00.1]} 7. Nge2 {[%clk 0:02:56.2]} 7... Ne8 {[%clk 0:02:59.9]} 8. Qd2 {[%clk
0:02:41.8]} 8... f5 {[%clk 0:02:58]} 9. exf5 {[%clk 0:02:40.3]} 9... Bxf5 {[%clk
0:02:58.9]} 10. Ng3 {[%clk 0:02:37.5]} 10... Bxd3 {[%clk 0:02:56.6]} 11. Qxd3
{[%clk 0:02:38.4]} 11... Bg5 {[%clk 0:02:56.6]} 12. O-O {[%clk 0:02:35.1]} 12...
Nd7 {[%clk 0:02:50.9]} 13. Nce4 {[%clk 0:02:30.9]} 13... Bxc1 {[%clk 0:02:49.8]}
14. Raxc1 {[%clk 0:02:31.8]} 14... Ndf6 {[%clk 0:02:49.7]} 15. Ng5 {[%clk
0:02:23.8]} 15... Nc7 {[%clk 0:02:20.3]} 16. Nh5 {[%clk 0:02:23.1]} 16... g6
{[%clk 0:02:18.5]} 17. Nxf6+ {[%clk 0:02:23.6]} 17... Qxf6 {[%clk 0:02:19.4]}
18. Ne4 {[%clk 0:02:23.8]} 18... Qe7 {[%clk 0:02:12.7]} 19. b4 {[%clk
0:02:13.6]} 19... cxb4 {[%clk 0:01:53.6]} 20. c5 {[%clk 0:02:12.3]} 20... Ne8
{[%clk 0:01:53.7]} 21. c6 {[%clk 0:01:54]} 21... Rc8 {[%clk 0:01:30.7]} 22. Rfd1
{[%clk 0:01:02.9]} 22... Rf4 {[%clk 0:01:17.2]} 23. Rc4 {[%clk 0:00:52.6]} 23...
a5 {[%clk 0:01:09.1]} 24. Rdc1 {[%clk 0:00:33.9]} 24... b5 {[%clk 0:01:07.8]}
25. R4c2 {[%clk 0:00:32.2]} 25... Nc7 {[%clk 0:01:08.1]} 26. f3 {[%clk
0:00:22.8]} 26... g5 {[%clk 0:00:54.2]} 27. a3 {[%clk 0:00:22.9]} 27... bxa3
{[%clk 0:00:49.4]} 28. Qxa3 {[%clk 0:00:21.5]} 28... Rd8 {[%clk 0:00:17.4]} 29.
Qxa5 {[%clk 0:00:19.4]} 29... g4 {[%clk 0:00:17.7]} 30. Qd2 {[%clk 0:00:11.5]}
30... gxf3 {[%clk 0:00:15.6]} 31. gxf3 {[%clk 0:00:12.4]} 31... Kh8 {[%clk
0:00:14.9]} 32. Kh1 {[%clk 0:00:12.6]} 32... Rxf3 {[%clk 0:00:14.6]} 33. Qg2
{[%clk 0:00:13.1]} 33... Rf4 {[%clk 0:00:13.5]} 34. Rg1 {[%clk 0:00:11.1]} 34...
Nxd5 {[%clk 0:00:10.4]} 35. Nxd6 {[%clk 0:00:07.4]} 35... Ne3 {[%clk 0:00:07.7]}
36. c7 {[%clk 0:00:02.3]} 36... Nxg2 {[%clk 0:00:07.4]} 37. c8=Q {[%clk
0:00:02]} 37... Qxd6 {[%clk 0:00:07.9]} 38. Qh3 {[%clk 0:00:01.4]} 38... Qd5
{[%clk 0:00:05.3]} 39. Rcxg2 {[%clk 0:00:01.6]} 39... Rg8 {[%clk 0:00:04.7]} 40.
Qh6 {[%clk 0:00:01.5]} 40... Rfg4 {[%clk 0:00:04.2]} 41. Qd2 {[%clk 0:00:01.3]}
41... Rxg2 {[%clk 0:00:03.7]} 42. Qxg2 {[%clk 0:00:01.4]} 42... Qxg2+ {[%clk
0:00:04.3]} 43. Rxg2 {[%clk 0:00:02.1]} 43... Rxg2 {[%clk 0:00:05.1]} 44. Kxg2
{[%clk 0:00:03]} 44... b4 {[%clk 0:00:05.9]} 45. Kf3 {[%clk 0:00:03.9]} 45... b3
{[%clk 0:00:06.8]} 46. Ke3 {[%clk 0:00:04.8]} 46... b2 {[%clk 0:00:07.7]} 47.
Ke4 {[%clk 0:00:05.2]} 47... b1=Q+ {[%clk 0:00:07.2]} 0-1

[Event "*** Titled Tuesday Blitz"]
[Site "Chess.com"]
[Date "2021.04.20"]
[Round "4"]
[White "rugbyclub"]
[Black "eldur16"]
[Result "1/2-1/2"]
[WhiteElo "2254"]
[BlackElo "2592"]
[TimeControl "180+1"]
[EndTime "10:38:32 PDT"]
[Termination "Game drawn by agreement"]

1. c4 {[%clk 0:02:58.8]} 1... e5 {[%clk 0:02:58.8]} 2. Nc3 {[%clk 0:02:58.4]}
2... Nf6 {[%clk 0:02:58.3]} 3. Nf3 {[%clk 0:02:51.5]} 3... Nc6 {[%clk
0:02:57.7]} 4. e3 {[%clk 0:02:51.2]} 4... Bb4 {[%clk 0:02:56.1]} 5. Qc2 {[%clk
0:02:51.1]} 5... Bxc3 {[%clk 0:02:55.7]} 6. Qxc3 {[%clk 0:02:49.5]} 6... Qe7
{[%clk 0:02:55.6]} 7. Be2 {[%clk 0:02:49.5]} 7... d5 {[%clk 0:02:52.6]} 8. d4
{[%clk 0:02:32.8]} 8... exd4 {[%clk 0:02:50.7]} 9. Nxd4 {[%clk 0:02:31.9]} 9...
Nxd4 {[%clk 0:02:50.6]} 10. Qxd4 {[%clk 0:02:31.9]} 10... c5 {[%clk 0:02:50.6]}
11. Qf4 {[%clk 0:02:30.7]} 11... O-O {[%clk 0:02:48.2]} 12. O-O {[%clk
0:02:29.5]} 12... d4 {[%clk 0:02:47.5]} 13. Bf3 {[%clk 0:02:24.6]} 13... d3
{[%clk 0:02:40.2]} 14. Rd1 {[%clk 0:02:17.4]} 14... Rd8 {[%clk 0:02:39.4]} 15.
Bd2 {[%clk 0:01:49.2]} 15... Be6 {[%clk 0:02:33.4]} 16. b3 {[%clk 0:01:47]}
16... Rd7 {[%clk 0:02:28.1]} 17. Bc3 {[%clk 0:01:46.3]} 17... Rad8 {[%clk
0:02:26.3]} 18. Rd2 {[%clk 0:01:35.5]} 18... h6 {[%clk 0:02:15.3]} 19. Rad1
{[%clk 0:01:30.1]} 19... a6 {[%clk 0:01:19.6]} 20. h3 {[%clk 0:01:05.8]} 20...
b5 {[%clk 0:01:16.5]} 21. Bxf6 {[%clk 0:00:56.3]} 21... Qxf6 {[%clk 0:01:14.3]}
22. Qxf6 {[%clk 0:00:55.6]} 22... gxf6 {[%clk 0:01:14.3]} 23. cxb5 {[%clk
0:00:43]} 23... axb5 {[%clk 0:01:13.9]} 24. Bc6 {[%clk 0:00:43.5]} 24... c4
{[%clk 0:01:10.1]} 25. Bxd7 {[%clk 0:00:37.3]} 25... Rxd7 {[%clk 0:01:09]} 26.
f3 {[%clk 0:00:21.3]} 26... Ra7 {[%clk 0:01:03.8]} 27. bxc4 {[%clk 0:00:16.9]}
27... bxc4 {[%clk 0:01:03.4]} 28. Kf2 {[%clk 0:00:16]} 28... Ra3 {[%clk
0:00:49.3]} 29. Rc1 {[%clk 0:00:15.4]} 29... f5 {[%clk 0:00:46.1]} 30. Kg3
{[%clk 0:00:14.5]} 30... Kg7 {[%clk 0:00:45.1]} 31. Kf4 {[%clk 0:00:14.9]} 31...
Kf6 {[%clk 0:00:44.2]} 32. e4 {[%clk 0:00:14.2]} 32... fxe4 {[%clk 0:00:42.8]}
33. fxe4 {[%clk 0:00:14.6]} 33... Ke7 {[%clk 0:00:39.1]} 34. g4 {[%clk
0:00:14.2]} 34... Kd6 {[%clk 0:00:32.5]} 35. Ke3 {[%clk 0:00:14.2]} 35... Kc5
{[%clk 0:00:31.4]} 36. Rf2 {[%clk 0:00:11.4]} 36... Kb4 {[%clk 0:00:26.7]} 37.
Kd4 {[%clk 0:00:11.4]} 37... Ra4 {[%clk 0:00:21.5]} 38. Rd2 {[%clk 0:00:09.3]}
38... Ra8 {[%clk 0:00:19.6]} 39. Rb2+ {[%clk 0:00:09.3]} 39... Ka3 {[%clk
0:00:19.3]} 40. Kc3 {[%clk 0:00:09.6]} 40... Rd8 {[%clk 0:00:17.3]} 41. Rd2
{[%clk 0:00:09.7]} 41... Rb8 {[%clk 0:00:15.3]} 42. Rf1 {[%clk 0:00:08]} 42...
Rb5 {[%clk 0:00:14.5]} 43. Rf4 {[%clk 0:00:07.3]} 43... h5 {[%clk 0:00:14]} 44.
e5 {[%clk 0:00:07.1]} 44... Rxe5 {[%clk 0:00:13.6]} 45. gxh5 {[%clk 0:00:06.3]}
45... Rxh5 {[%clk 0:00:13.4]} 46. h4 {[%clk 0:00:06.9]} 46... Ka4 {[%clk
0:00:12]} 47. Rxc4+ {[%clk 0:00:06.6]} 47... Bxc4 {[%clk 0:00:11.4]} 48. Kxc4
{[%clk 0:00:07.2]} 48... Rxh4+ {[%clk 0:00:11.4]} 49. Kxd3 {[%clk 0:00:07.4]}
49... Ka3 {[%clk 0:00:11.6]} 50. Rf2 {[%clk 0:00:07.2]} 50... Rh3+ {[%clk
0:00:11.4]} 51. Ke4 {[%clk 0:00:07.4]} 51... Rh7 {[%clk 0:00:10.2]} 1/2-1/2

[Event "*** Titled Tuesday Blitz"]
[Site "Chess.com"]
[Date "2021.04.20"]
[Round "4"]
[White "Cambek64"]
[Black "poneis_malditos"]
[Result "1-0"]
[WhiteElo "2482"]
[BlackElo "2268"]
[TimeControl "180+1"]
[EndTime "10:38:37 PDT"]
[Termination "Cambek64 won by resignation"]

1. e4 {[%clk 0:02:54.2]} 1... c5 {[%clk 0:03:00]} 2. Nc3 {[%clk 0:02:53.5]} 2...
e6 {[%clk 0:02:59]} 3. d3 {[%clk 0:02:54]} 3... Nc6 {[%clk 0:02:59.2]} 4. f4
{[%clk 0:02:54.5]} 4... g6 {[%clk 0:02:58.4]} 5. Nf3 {[%clk 0:02:55.1]} 5... Bg7
{[%clk 0:02:55.5]} 6. g3 {[%clk 0:02:54.9]} 6... d6 {[%clk 0:02:56]} 7. Bg2
{[%clk 0:02:55.3]} 7... Nge7 {[%clk 0:02:56.6]} 8. O-O {[%clk 0:02:55.7]} 8...
O-O {[%clk 0:02:57.2]} 9. Ne2 {[%clk 0:02:55.9]} 9... Rb8 {[%clk 0:02:56.5]} 10.
g4 {[%clk 0:02:54.7]} 10... f5 {[%clk 0:02:56.5]} 11. gxf5 {[%clk 0:02:54.2]}
11... gxf5 {[%clk 0:02:56.3]} 12. Ng3 {[%clk 0:02:53.6]} 12... Rf6 {[%clk
0:02:43.7]} 13. Nh5 {[%clk 0:02:50.8]} 13... Rg6 {[%clk 0:02:43.9]} 14. Nxg7
{[%clk 0:02:51.2]} 14... Kxg7 {[%clk 0:02:43.1]} 15. b3 {[%clk 0:02:48.8]} 15...
Qg8 {[%clk 0:02:39.8]} 16. Bb2+ {[%clk 0:02:36.5]} 16... Kf8 {[%clk 0:02:35.2]}
17. Rf2 {[%clk 0:02:36.9]} 17... Ke8 {[%clk 0:02:23.1]} 18. Qd2 {[%clk
0:02:34.5]} 18... e5 {[%clk 0:02:20.4]} 19. exf5 {[%clk 0:02:26.5]} 19... Bxf5
{[%clk 0:02:19.6]} 20. fxe5 {[%clk 0:02:24.5]} 20... Bh3 {[%clk 0:02:12.7]} 21.
exd6 {[%clk 0:02:22.5]} 21... Nf5 {[%clk 0:02:13]} 22. Re1+ {[%clk 0:02:11.9]}
22... Kd8 {[%clk 0:02:13.1]} 23. Kh1 {[%clk 0:02:08.4]} 23... Bxg2+ {[%clk
0:02:04.6]} 24. Rxg2 {[%clk 0:02:07.9]} 24... Rxg2 {[%clk 0:01:43.7]} 25. Qxg2
{[%clk 0:02:06.8]} 25... Qxg2+ {[%clk 0:01:44.6]} 26. Kxg2 {[%clk 0:02:06.2]}
26... Kd7 {[%clk 0:01:45.5]} 27. Ne5+ {[%clk 0:01:37.7]} 27... Kxd6 {[%clk
0:01:42.5]} 28. Nxc6 {[%clk 0:01:36.4]} 28... Kxc6 {[%clk 0:01:43.4]} 29. Re6+
{[%clk 0:01:31.7]} 29... Kd7 {[%clk 0:01:42.6]} 30. Re5 {[%clk 0:01:30.3]} 30...
Rg8+ {[%clk 0:01:36.1]} 31. Kf2 {[%clk 0:01:29.2]} 31... Nh4 {[%clk 0:01:29.1]}
32. Rxc5 {[%clk 0:01:23.8]} 32... Rg2+ {[%clk 0:01:28.7]} 33. Ke3 {[%clk
0:01:21.5]} 33... Rxh2 {[%clk 0:01:29]} 34. Be5 {[%clk 0:01:19.2]} 34... Rh3+
{[%clk 0:00:51.6]} 35. Ke4 {[%clk 0:01:18.2]} 35... Ng6 {[%clk 0:00:49.8]} 36.
d4 {[%clk 0:00:52.3]} 36... Nxe5 {[%clk 0:00:33.5]} 37. dxe5 {[%clk 0:00:45.6]}
37... Rh1 {[%clk 0:00:30.1]} 38. Rd5+ {[%clk 0:00:31.7]} 38... Ke7 {[%clk
0:00:30.2]} 39. Rd2 {[%clk 0:00:24]} 39... h5 {[%clk 0:00:28.5]} 40. Rg2 {[%clk
0:00:21.6]} 40... h4 {[%clk 0:00:24.3]} 41. Rg7+ {[%clk 0:00:22]} 41... Kf8
{[%clk 0:00:23.6]} 42. Rxb7 {[%clk 0:00:22.4]} 42... h3 {[%clk 0:00:23.9]} 43.
Kf3 {[%clk 0:00:17.6]} 43... Kg8 {[%clk 0:00:17.3]} 44. Kg3 {[%clk 0:00:17.5]}
44... h2 {[%clk 0:00:10.3]} 45. Kg2 {[%clk 0:00:16.6]} 45... Rc1 {[%clk
0:00:10.6]} 46. Kxh2 {[%clk 0:00:16.4]} 46... Rxc2+ {[%clk 0:00:11.5]} 47. Kg3
{[%clk 0:00:16.1]} 47... Rxa2 {[%clk 0:00:12.4]} 48. Kf4 {[%clk 0:00:14.4]}
48... Kf8 {[%clk 0:00:13.3]} 49. Kf5 {[%clk 0:00:14.8]} 49... Ra6 {[%clk
0:00:11.4]} 50. b4 {[%clk 0:00:13.1]} 50... Rb6 {[%clk 0:00:10.8]} 51. Rxb6
{[%clk 0:00:12.4]} 51... axb6 {[%clk 0:00:11.1]} 52. Ke6 {[%clk 0:00:13.1]}
52... Ke8 {[%clk 0:00:11.5]} 53. b5 {[%clk 0:00:12.6]} 53... Kd8 {[%clk
0:00:11.4]} 54. Kd6 {[%clk 0:00:13.2]} 54... Kc8 {[%clk 0:00:11.2]} 55. Kc6
{[%clk 0:00:13.8]} 1-0

[Event "*** Titled Tuesday Blitz"]
[Site "Chess.com"]
[Date "2021.04.20"]
[Round "4"]
[White "muchojogo"]
[Black "chessbia"]
[Result "1/2-1/2"]
[WhiteElo "2461"]
[BlackElo "2327"]
[TimeControl "180+1"]
[EndTime "10:38:37 PDT"]
[Termination "Game drawn by repetition"]

1. d4 {[%clk 0:03:00.9]} 1... d5 {[%clk 0:02:56.7]} 2. Bf4 {[%clk 0:03:01.4]}
2... c5 {[%clk 0:02:56.4]} 3. e3 {[%clk 0:03:01.7]} 3... Nc6 {[%clk 0:02:56.2]}
4. c3 {[%clk 0:03:02.3]} 4... Nf6 {[%clk 0:02:55.8]} 5. Nd2 {[%clk 0:03:02.9]}
5... Qb6 {[%clk 0:02:49.9]} 6. Qb3 {[%clk 0:02:57.8]} 6... c4 {[%clk 0:02:50.2]}
7. Qc2 {[%clk 0:02:52.2]} 7... Nh5 {[%clk 0:02:46.7]} 8. Bg3 {[%clk 0:02:35]}
8... Nxg3 {[%clk 0:02:46.3]} 9. hxg3 {[%clk 0:02:35.9]} 9... e6 {[%clk
0:02:46.8]} 10. Ngf3 {[%clk 0:02:23.9]} 10... h6 {[%clk 0:02:44.5]} 11. Be2
{[%clk 0:02:10.7]} 11... Be7 {[%clk 0:02:36.5]} 12. e4 {[%clk 0:02:01.8]} 12...
a5 {[%clk 0:02:33.6]} 13. e5 {[%clk 0:01:57]} 13... a4 {[%clk 0:02:33.3]} 14. a3
{[%clk 0:01:55.9]} 14... Bd7 {[%clk 0:02:30.1]} 15. Nf1 {[%clk 0:01:42.6]} 15...
Na5 {[%clk 0:02:22.5]} 16. N3d2 {[%clk 0:01:42.1]} 16... Nb3 {[%clk 0:02:22]}
17. Rb1 {[%clk 0:01:39.2]} 17... O-O-O {[%clk 0:02:18.3]} 18. Ne3 {[%clk
0:01:38.9]} 18... Kb8 {[%clk 0:02:12]} 19. f4 {[%clk 0:01:38.5]} 19... Rdg8
{[%clk 0:01:49.3]} 20. f5 {[%clk 0:01:24.5]} 20... Bg5 {[%clk 0:01:40.6]} 21.
Kf2 {[%clk 0:01:24.3]} 21... f6 {[%clk 0:01:37.9]} 22. Nf3 {[%clk 0:01:11.4]}
22... Bxe3+ {[%clk 0:01:29.3]} 23. Kxe3 {[%clk 0:01:12.3]} 23... exf5 {[%clk
0:01:29.1]} 24. Rbf1 {[%clk 0:01:04.9]} 24... Re8 {[%clk 0:01:22.6]} 25. e6
{[%clk 0:00:45.8]} 25... Rxe6+ {[%clk 0:01:20.3]} 26. Kf2 {[%clk 0:00:46.7]}
26... Rhe8 {[%clk 0:01:16.4]} 27. Re1 {[%clk 0:00:46.6]} 27... Re4 {[%clk
0:01:06.2]} 28. Bd1 {[%clk 0:00:43]} 28... Qd6 {[%clk 0:01:01]} 29. Qb1 {[%clk
0:00:36.1]} 29... f4 {[%clk 0:00:44.2]} 30. gxf4 {[%clk 0:00:33.3]} 30... Rxe1
{[%clk 0:00:35.6]} 31. Rxe1 {[%clk 0:00:32.5]} 31... Rxe1 {[%clk 0:00:35]} 32.
Kxe1 {[%clk 0:00:32.4]} 32... Qxf4 {[%clk 0:00:34.8]} 33. Bxb3 {[%clk
0:00:30.4]} 33... axb3 {[%clk 0:00:21.7]} 34. Kf2 {[%clk 0:00:30.8]} 34... Bf5
{[%clk 0:00:21.1]} 35. Qh1 {[%clk 0:00:26.7]} 35... Qe4 {[%clk 0:00:19.6]} 36.
Ne1 {[%clk 0:00:17.1]} 36... Bg4 {[%clk 0:00:15.5]} 37. Qh2+ {[%clk 0:00:17.1]}
37... Ka7 {[%clk 0:00:15.4]} 38. Qc7 {[%clk 0:00:16.5]} 38... Qe2+ {[%clk
0:00:14.8]} 39. Kg3 {[%clk 0:00:16]} 39... Qxe1+ {[%clk 0:00:11.1]} 40. Kxg4
{[%clk 0:00:16.5]} 40... Qe6+ {[%clk 0:00:11.2]} 41. Kg3 {[%clk 0:00:16.5]}
41... h5 {[%clk 0:00:07.1]} 42. Qxg7 {[%clk 0:00:15]} 42... Qe3+ {[%clk
0:00:05.2]} 43. Kh2 {[%clk 0:00:15.3]} 43... Qf4+ {[%clk 0:00:04]} 44. Kh1
{[%clk 0:00:15.6]} 44... Qc1+ {[%clk 0:00:04]} 45. Kh2 {[%clk 0:00:16.2]} 45...
Qxb2 {[%clk 0:00:04.9]} 46. Qe7 {[%clk 0:00:12.9]} 46... Qxc3 {[%clk 0:00:04.8]}
47. Qc5+ {[%clk 0:00:13.1]} 47... Ka6 {[%clk 0:00:04.9]} 48. Qd6+ {[%clk
0:00:13]} 48... Ka7 {[%clk 0:00:05.1]} 49. Qc5+ {[%clk 0:00:13]} 49... Kb8
{[%clk 0:00:05.4]} 50. Qd6+ {[%clk 0:00:13.3]} 50... Ka8 {[%clk 0:00:06]} 51.
Qd8+ {[%clk 0:00:12.7]} 51... Ka7 {[%clk 0:00:06.4]} 52. Qxd5 {[%clk 0:00:13.2]}
52... b2 {[%clk 0:00:05.4]} 53. Qc5+ {[%clk 0:00:13.3]} 53... Ka8 {[%clk
0:00:05.5]} 54. Qf8+ {[%clk 0:00:13]} 54... Ka7 {[%clk 0:00:05.6]} 55. Qc5+
{[%clk 0:00:13.9]} 55... Kb8 {[%clk 0:00:05.9]} 56. Qd6+ {[%clk 0:00:14]} 56...
Ka7 {[%clk 0:00:06.5]} 57. Qc5+ {[%clk 0:00:14.3]} 1/2-1/2